bitfinex/quotes_SOLUSD_20240626
["timestamp","ask_amount","ask_price","bid_price","bid_amount"]
[1719368495370,0.17,139.5,139.44,0.8634495]
[1719368495675,7.169,139.49,139.44,0.8634495]
[1719368495850,7.3386,139.5,139.44,0.8634495]
[1719368496178,0.17,139.49,139.44,0.8634495]
[1719368496347,7.3393,139.49,139.44,0.8634495]
[1719368496547,0.17,139.48,139.44,0.8634495]
[1719368496967,0.17,139.48,139.44,8.0348495]
[1719368497247,0.34,139.49,139.44,8.0348495]
[1719368497649,7.168,139.51,139.45,7.1709]
[1719368497856,17.9139,139.56,139.44,0.8634495]
[1719368498046,22.3307,139.57,139.51,7.1679]
[1719368498267,20.0,139.56,139.5,17.9204]
[1719368498575,265.78572449,139.58,139.5,17.9204]
[1719368498781,265.78572449,139.58,139.51,23.8057]
[1719368498782,258.6,139.58,139.51,23.8057]
[1719368499071,258.6,139.58,139.51,16.6381]
[1719368499280,7.1652,139.57,139.51,23.8059]
[1719368499465,7.1648,139.57,139.51,23.8059]
[1719368499664,258.6,139.58,139.52,17.9179]
[1719368500162,258.6,139.58,139.54,17.9155]
[1719368500347,258.6,139.58,139.54,25.0818]
[1719368500549,258.6,139.58,139.54,17.9155]
[1719368501050,258.6,139.58,139.56,17.9129]
[1719368501271,7.1629,139.61,139.55,7.1657]
[1719368501683,5.66944262,139.64,139.54,7.1662]
[1719368501684,7.1634,139.6,139.54,7.1662]
[1719368501891,7.1628,139.61,139.53,17.9167]
[1719368502046,7.1635,139.6,139.54,7.1663]
[1719368502759,7.1629,139.61,139.54,7.1663]
[1719368503193,0.17,139.6,139.54,7.1663]
[1719368503392,7.5034,139.6,139.54,7.1663]
[1719368504574,0.34,139.6,139.55,7.1655]
[1719368504879,0.34,139.61,139.55,7.1655]
[1719368505470,0.34,139.61,139.53,17.9167]
[1719368505894,0.17,139.6,139.53,17.9167]
[1719368506196,7.1637,139.6,139.54,7.1663]
[1719368506381,0.34,139.59,139.54,7.1663]
[1719368506581,7.3327,139.62,139.54,7.1663]
[1719368506791,0.17,139.61,139.54,7.1663]
[1719368506988,7.1643,139.58,139.51,16.6381]
[1719368507182,7.1638,139.6,139.53,7.1665]
[1719368507499,0.17,139.62,139.53,7.1665]
[1719368507500,7.504,139.59,139.53,7.1665]
[1719368507682,0.17,139.59,139.53,7.1665]
[1719368508205,0.34,139.59,139.53,7.1665]
[1719368508385,0.34,139.59,139.54,7.1663]
[1719368508586,0.34,139.59,139.51,16.6381]
[1719368508772,17.9075,139.61,139.51,23.8056]
[1719368508773,7.165,139.57,139.51,23.8056]
[1719368509487,7.1644,139.58,139.52,7.1673]
[1719368509687,0.34,139.6,139.53,7.1667]
[1719368509991,0.34,139.6,139.5,6.0866]
[1719368509992,16.7533,139.6,139.5,6.0866]
[1719368510292,20.0,139.59,139.5,6.0866]
[1719368510511,7.1659,139.55,139.5,6.0866]
[1719368510876,0.34,139.54,139.5,6.0866]
[1719368511299,0.34,139.54,139.48,25.0921]
[1719368511300,0.34,139.54,139.49,7.1688]
[1719368511603,302.9725,139.59,139.48,17.923]
[1719368511905,7.1667,139.54,139.48,25.0924]
[1719368512100,0.34,139.58,139.47,22.6393]
[1719368512101,7.1672,139.53,139.47,22.6393]
[1719368512306,7.167,139.53,139.47,29.8091]
[1719368512604,7.1664,139.54,139.48,7.1694]
[1719368513496,285.0625,139.59,139.5,17.9207]
[1719368513876,7.1658,139.56,139.5,17.9207]
[1719368514077,7.1659,139.55,139.5,17.9207]
[1719368514806,7.1655,139.56,139.5,25.0891]
[1719368515588,7.1661,139.55,139.49,51.83]
[1719368515906,7.1655,139.56,139.5,7.1684]
[1719368516921,7.1669,139.53,139.47,47.733]
[1719368517106,0.17,139.55,139.47,92.3934]
[1719368517610,19.34,139.57,139.48,7.169]
[1719368517908,7.1667,139.54,139.48,7.169]
[1719368518297,7.167,139.53,139.47,99.5633]
[1719368519622,7.1676,139.52,139.47,74.4693]
[1719368520002,7.1679,139.51,139.47,22.6393]
[1719368520202,7.1679,139.51,139.45,7.1708]
[1719368520794,7.1679,139.51,139.44,100.5769495]
[1719368521727,7.1679,139.51,139.45,7.1709]
[1719368522914,0.34,139.52,139.44,93.4056495]
[1719368522915,7.1672,139.53,139.47,7.1698]
[1719368523096,17.9138,139.56,139.47,51.83]
[1719368523607,17.9138,139.56,139.47,58.9996]
[1719368523921,7.1669,139.53,139.47,58.9998]
[1719368524518,7.1665,139.54,139.48,7.1694]
[1719368524702,7.1657,139.56,139.48,17.9228]
[1719368524903,19.34,139.57,139.5,7.1683]
[1719368525121,20.0,139.58,139.49,7.1688]
[1719368525432,7.1659,139.55,139.49,7.1688]
[1719368526320,7.165,139.57,139.5,17.9208]
[1719368526523,258.6,139.59,139.5,74.5261]
[1719368526727,258.6,139.59,139.54,17.9148]
[1719368526924,258.6,139.59,139.54,25.081]
[1719368527116,265.7638,139.59,139.54,17.9148]
[1719368527636,265.7638,139.59,139.53,58.9968]
[1719368528137,258.6,139.59,139.53,51.83]
[1719368528311,258.6,139.59,139.56,7.1652]
[1719368528517,258.6,139.59,139.55,25.0794]
[1719368528902,258.6,139.59,139.53,7.1664]
[1719368529204,258.6,139.59,139.53,51.83]
[1719368529407,258.6,139.59,139.51,17.9189]
[1719368529627,258.6,139.59,139.52,51.83]
[1719368529806,258.6,139.59,139.53,17.9166]
[1719368530129,258.6,139.59,139.52,69.7479]
[1719368530431,258.6,139.59,139.53,7.1668]
[1719368530432,265.7638,139.59,139.53,7.1668]
[1719368532726,258.6,139.59,139.54,25.0811]
[1719368532935,258.6,139.59,139.55,51.83]
[1719368534530,258.6,139.59,139.55,58.9957]
[1719368534735,258.6,139.59,139.55,51.83]
[1719368536522,258.6,139.59,139.56,7.1653]
[1719368536964,258.6,139.59,139.57,7.1647]
[1719368537308,258.6,139.59,139.55,51.83]
[1719368537627,258.6,139.59,139.55,58.9955]
[1719368537944,258.6,139.59,139.55,51.83]
[1719368538099,258.6,139.59,139.57,7.1647]
[1719368538306,258.6,139.59,139.56,25.078]
[1719368538739,258.6,139.59,139.58,7.1643]
[1719368539032,7.1608,139.65,139.59,7.1637]
[1719368540110,7.1608,139.65,139.58,76.9046]
[1719368540312,7.1613,139.64,139.58,69.7404]
[1719368540833,7.1613,139.64,139.58,76.9046]
[1719368541033,258.6,139.67,139.59,7.1637]
[1719368541222,7.3303,139.66,139.59,7.1637]
[1719368541411,258.6,139.67,139.6,7.1632]
[1719368541617,258.6,139.67,139.61,51.83]
[1719368541936,258.6,139.67,139.62,7.1619]
[1719368542120,265.7598,139.67,139.61,58.9926]
[1719368542821,258.6,139.67,139.63,7.1617]
[1719368543032,7.1587,139.69,139.63,7.1617]
[1719368543520,7.1587,139.69,139.62,25.0672]
[1719368543721,17.8962,139.7,139.59,25.0729]
[1719368543916,17.8962,139.7,139.6,51.83]
[1719368544142,17.8986,139.68,139.6,51.83]
[1719368544344,7.1609,139.65,139.6,51.83]
[1719368544648,7.1611,139.65,139.6,51.83]
[1719368544939,34.3272,139.71,139.61,7.1626]
[1719368545112,7.1598,139.67,139.61,7.1626]
[1719368545316,7.1606,139.66,139.6,69.7379]
[1719368545632,7.1616,139.64,139.6,51.83]
[1719368545837,7.1617,139.63,139.57,29.0288]
[1719368546040,17.8987,139.68,139.59,51.83]
[1719368546351,7.1614,139.64,139.59,51.83]
[1719368547115,7.1637,139.6,139.56,51.83]
[1719368547319,7.1647,139.58,139.53,6.0389]
[1719368547638,7.1649,139.57,139.52,51.83]
[1719368547840,7.1654,139.56,139.52,51.83]
[1719368548373,0.17,139.57,139.47,17.9245]
[1719368548542,0.17,139.53,139.44,0.8634495]
[1719368548744,7.1699,139.48,139.44,0.8634495]
[1719368548949,17.9202,139.51,139.44,0.8634495]
[1719368549164,7.1705,139.46,139.44,0.8634495]
[1719368549459,7.1699,139.48,139.44,0.8634495]
[1719368549850,7.17,139.47,139.44,0.8634495]
[1719368550057,7.1695,139.48,139.44,0.8634495]
[1719368550258,7.17,139.47,139.44,0.8634495]
[1719368551355,7.1695,139.48,139.44,0.8634495]
[1719368551551,7.339,139.49,139.44,0.8634495]
[1719368551757,7.3384,139.5,139.44,0.8634495]
[1719368552155,258.6,139.54,139.44,0.8634495]
[1719368552469,7.1681,139.51,139.44,0.8634495]
[1719368552848,5.66944262,139.55,139.44,0.8634495]
[1719368552849,7.1664,139.54,139.48,7.1692]
[1719368553546,7.1656,139.56,139.49,7.1689]
[1719368553745,258.6,139.58,139.49,17.9221]
[1719368553945,7.1674,139.53,139.46,6.5651]
[1719368554146,7.1664,139.54,139.47,7.1695]
[1719368554447,7.1664,139.54,139.48,7.1694]
[1719368555070,258.6,139.58,139.48,17.9227]
[1719368555269,7.1649,139.57,139.46,6.5651]
[1719368555448,7.1644,139.58,139.5,17.9204]
[1719368555775,27.61884262,139.6,139.47,17.9244]
[1719368555958,7.1676,139.52,139.46,6.5651]
[1719368556147,9.40513406,139.59,139.46,6.5651]
[1719368556148,7.168,139.51,139.46,6.5651]
[1719368556480,7.1687,139.5,139.46,6.5651]
[1719368556661,7.1687,139.5,139.45,15.4079]
[1719368557062,15.07457668,139.59,139.44,0.8634495]
[1719368557063,17.9176,139.53,139.44,0.8634495]
[1719368557255,0.17,139.49,139.44,0.8634495]
[1719368557647,7.1695,139.48,139.44,0.8634495]
[1719368559050,7.1691,139.49,139.44,0.8634495]
[1719368559258,7.1683,139.51,139.44,8.0344495]
[1719368559555,27.1674,139.52,139.45,7.1709]
[1719368559761,27.1674,139.52,139.46,7.1704]
[1719368560781,7.1674,139.52,139.46,7.1704]
[1719368561274,18.2575,139.53,139.44,0.8634495]
[1719368561479,7.1701,139.47,139.44,0.8634495]
[1719368561980,18.0905,139.51,139.44,0.8634495]
[1719368562173,7.171,139.45,139.44,0.8634495]
[1719368562377,7.1705,139.46,139.44,0.8634495]
[1719368562586,17.9229,139.49,139.44,0.8634495]
[1719368562887,7.171,139.46,139.44,0.8634495]
[1719368563069,7.171,139.45,139.44,0.8634495]
[1719368563387,7.1706,139.46,139.44,0.8634495]
[1719368563953,7.171,139.45,139.44,0.8634495]
[1719368564148,27.511,139.45,139.44,0.8634495]
[1719368564353,16.6477,139.52,139.44,0.8634495]
[1719368564553,7.17,139.47,139.44,0.8634495]
[1719368565089,7.1705,139.46,139.44,0.8634495]
[1719368565382,7.171,139.45,139.44,0.8634495]
[1719368565566,7.1706,139.46,139.44,0.8634495]
[1719368565771,17.9218,139.5,139.44,0.8634495]
[1719368566080,0.17,139.49,139.44,0.8634495]
[1719368566380,0.34,139.49,139.44,0.8634495]
[1719368566573,7.1703,139.47,139.44,0.8634495]
[1719368567370,7.1703,139.47,139.44,0.5742845]
[1719368567683,0.34,139.49,139.44,0.5742845]
[1719368567684,7.1689,139.49,139.44,0.5742845]
[1719368568066,20.0,139.51,139.44,0.5742845]
[1719368568274,7.1691,139.49,139.44,0.5742845]
[1719368568479,0.17,139.5,139.44,0.5742845]
[1719368568784,7.1698,139.48,139.44,0.5742845]
[1719368569495,20.0,139.5,139.45,7.1708]
[1719368569787,7.1686,139.5,139.44,7.7455845]
[1719368570158,7.1691,139.49,139.44,0.5742845]
[1719368570356,7.1685,139.5,139.44,7.7456845]
[1719368571602,31.48422449,139.54,139.44,7.7456845]
[1719368571794,0.34,139.53,139.44,0.5742845]
[1719368571994,7.169,139.49,139.44,0.5742845]
[1719368572505,7.1686,139.5,139.44,7.7457845]
[1719368573306,17.919,139.52,139.44,0.5742845]
[1719368573475,7.1689,139.5,139.44,0.5742845]
[1719368573675,7.169,139.49,139.44,0.5742845]
[1719368573907,7.1685,139.5,139.44,7.7457845]
[1719368574082,0.34,139.51,139.44,0.5742845]
[1719368574286,7.1693,139.49,139.44,0.5742845]
[1719368574994,13.56772449,139.54,139.44,18.5023845]
[1719368575902,7.1676,139.52,139.45,7.1706]
[1719368576110,7.1676,139.52,139.46,7.1703]
[1719368576701,7.1684,139.5,139.44,25.6734845]
[1719368578319,7.1681,139.51,139.45,7.171]
[1719368578516,7.1689,139.5,139.44,18.5023845]
[1719368578688,2.21940957,139.59,139.45,77.5946]
[1719368578882,2.21940957,139.59,139.49,25.0904]
[1719368578883,7.1657,139.56,139.49,25.0904]
[1719368579093,7.1659,139.55,139.49,25.0904]
[1719368579298,7.1665,139.54,139.48,7.1693]
[1719368579609,17.9128,139.57,139.46,25.0957]
[1719368579805,2.21940957,139.59,139.49,7.1686]
[1719368580109,2.21940957,139.59,139.48,25.0922]
[1719368580321,2.21940957,139.59,139.49,7.1689]
[1719368580494,2.21940957,139.59,139.45,57.4242]
[1719368580687,9.38350957,139.59,139.53,7.1664]
[1719368580887,9.38350957,139.59,139.46,65.34]
[1719368580888,7.1644,139.58,139.54,45.0]
[1719368581102,7.1649,139.57,139.54,45.0]
[1719368581319,2.21940957,139.59,139.53,45.0]
[1719368581320,7.1647,139.58,139.53,45.0]
[1719368581490,7.1648,139.57,139.53,45.0]
[1719368581816,7.1645,139.58,139.53,45.0]
[1719368582190,23.57674262,139.61,139.53,45.0]
[1719368582191,7.1657,139.56,139.53,45.0]
[1719368582604,7.1647,139.58,139.53,45.0]
[1719368583018,0.17,139.59,139.53,45.0]
[1719368583194,0.17,139.6,139.53,45.0]
[1719368583515,2.39564781,139.6,139.48,7.7435845]
[1719368583719,43.88189043,139.6,139.48,0.5742845]
[1719368583888,22.39564781,139.59,139.48,0.5742845]
[1719368584084,7.1675,139.52,139.48,0.5742845]
[1719368584706,7.1668,139.54,139.48,0.5742845]
[1719368585018,17.913,139.57,139.48,0.5742845]
[1719368585019,7.337,139.53,139.48,0.5742845]
[1719368585199,7.1681,139.51,139.48,0.5742845]
[1719368585400,0.17,139.52,139.48,0.5742845]
[1719368585917,7.1689,139.49,139.48,0.5742845]
[1719368586125,7.5089,139.49,139.48,0.5742845]
[1719368587691,27.5089,139.49,139.48,0.5742845]
[1719368590194,7.5089,139.49,139.48,0.5742845]
[1719368592229,7.1689,139.49,139.48,0.5742845]
[1719368593419,7.3389,139.49,139.48,0.5742845]
[1719368593618,0.34,139.49,139.48,0.5742845]
[1719368594617,7.3389,139.49,139.48,0.5742845]
[1719368595122,0.17,139.49,139.48,0.5742845]
[1719368595326,7.3389,139.49,139.48,0.5742845]
[1719368595805,7.5089,139.49,139.48,0.5742845]
[1719368599607,24.70325227,139.54,139.48,0.5742845]
[1719368599921,7.1675,139.52,139.48,0.5742845]
[1719368600111,7.167,139.53,139.48,0.5742845]
[1719368600906,22.0599,139.56,139.48,0.5742845]
[1719368601112,7.1674,139.52,139.48,0.5742845]
[1719368601314,7.1679,139.51,139.48,0.5742845]
[1719368602520,7.1689,139.49,139.48,0.5742845]
[1719368602909,7.5089,139.49,139.48,0.5742845]
[1719368604628,23.063,139.49,139.48,0.5742845]
[1719368605134,23.063,139.49,139.48,8.45e-05]
[1719368605313,43.063,139.49,139.48,8.45e-05]
[1719368606335,88.063,139.49,139.48,8.45e-05]
[1719368606527,68.063,139.49,139.48,8.45e-05]
[1719368606735,88.063,139.49,139.48,8.45e-05]
[1719368607207,88.063,139.49,139.38,16.95714483]
[1719368607208,17.9256,139.47,139.38,16.95714483]
[1719368607411,0.34,139.46,139.38,16.95714483]
[1719368609310,7.1726,139.42,139.38,16.95714483]
[1719368609543,0.34,139.43,139.38,16.95714483]
[1719368609820,7.512,139.44,139.39,45.0]
[1719368610014,7.171,139.45,139.39,52.1739]
[1719368610224,7.171,139.45,139.4,17.9335]
[1719368610419,7.1706,139.46,139.41,45.0]
[1719368611230,17.924,139.48,139.41,45.0]
[1719368611535,7.1706,139.46,139.41,45.0]
[1719368612624,7.5101,139.47,139.41,52.173]
[1719368612947,0.34,139.47,139.41,45.0]
[1719368613243,0.17,139.46,139.4,45.0]
[1719368613450,7.1719,139.44,139.39,45.0]
[1719368613604,0.34,139.45,139.39,45.0]
[1719368613807,7.1722,139.43,139.39,45.0]
[1719368614029,7.3416,139.44,139.39,45.0]
[1719368614735,0.17,139.46,139.39,45.0]
[1719368615213,7.3408,139.46,139.4,7.1735]
[1719368615412,7.3408,139.46,139.41,45.0]
[1719368615613,7.1719,139.44,139.41,45.0]
[1719368615846,7.1719,139.44,139.38,42.06764483]
[1719368616053,7.1721,139.43,139.39,45.0]
[1719368617228,7.1716,139.44,139.39,45.0]
[1719368617629,7.3424,139.43,139.38,34.89314483]
[1719368617815,7.1724,139.43,139.38,16.95714483]
[1719368618016,7.3416,139.44,139.38,24.13164483]
[1719368618244,7.1716,139.44,139.38,24.13164483]
[1719368618543,7.5121,139.43,139.38,16.95714483]
[1719368618713,7.3421,139.43,139.38,16.95714483]
[1719368619117,0.17,139.44,139.38,16.95714483]
[1719368619351,7.5115,139.44,139.39,52.174]
[1719368619525,7.1709,139.46,139.39,52.174]
[1719368619847,0.34,139.45,139.39,52.174]
[1719368620040,17.9243,139.48,139.39,45.0]
[1719368620243,7.1712,139.45,139.39,52.174]
[1719368620555,7.1715,139.44,139.39,52.174]
[1719368620841,7.1715,139.44,139.39,45.0]
[1719368621146,7.1711,139.45,139.39,52.174]
[1719368621828,0.34,139.44,139.39,45.0]
[1719368622222,17.9243,139.48,139.39,45.0]
[1719368622427,7.171,139.45,139.39,45.0]
[1719368622615,7.3404,139.47,139.4,6.3258]
[1719368622816,0.17,139.47,139.41,45.0]
[1719368623022,7.1701,139.47,139.41,52.173]
[1719368623444,7.1705,139.46,139.41,45.0]
[1719368624122,0.17,139.48,139.41,45.0]
[1719368624123,7.3396,139.48,139.41,62.9324]
[1719368624323,0.17,139.48,139.43,25.1015]
[1719368624648,7.1693,139.49,139.44,45.0]
[1719368624949,7.1695,139.48,139.45,15.6041]
[1719368625523,17.9189,139.52,139.45,15.6041]
[1719368625731,7.1688,139.5,139.46,45.0]
[1719368626537,7.1688,139.5,139.46,51.596]
[1719368629322,0.17,139.51,139.46,51.596]
[1719368629526,0.34,139.52,139.46,51.596]
[1719368629849,7.1696,139.48,139.46,51.596]
[1719368630169,7.17,139.47,139.46,51.596]
[1719368630732,7.17,139.47,139.46,45.0]
[1719368630927,7.1705,139.46,139.45,15.6041]
[1719368632166,0.34,139.52,139.43,6.2456]
[1719368632167,7.171,139.45,139.43,6.2456]
[1719368632456,7.1711,139.45,139.41,15.2748]
[1719368632657,7.5106,139.46,139.41,15.2748]
[1719368632953,7.1699,139.48,139.41,22.4476]
[1719368633146,17.9226,139.49,139.41,22.4476]
[1719368633147,7.1701,139.47,139.41,22.4476]
[1719368633849,0.17,139.49,139.42,45.0]
[1719368634052,0.17,139.48,139.42,45.0]
[1719368634433,7.1705,139.46,139.42,45.0]
[1719368634849,0.17,139.48,139.42,45.0]
[1719368635157,7.1698,139.48,139.42,45.0]
[1719368635332,7.171,139.45,139.42,45.0]
[1719368635533,7.172,139.43,139.42,45.0]
[1719368635749,18.2658,139.47,139.42,45.0]
[1719368636752,7.1711,139.45,139.42,45.0]
[1719368636946,7.1715,139.44,139.42,45.0]
[1719368637157,7.1715,139.44,139.41,15.2748]
[1719368637655,7.1721,139.43,139.41,15.2748]
[1719368637826,7.1741,139.39,139.38,0.41384483]
[1719368638030,7.1736,139.4,139.38,0.41384483]
[1719368638229,7.1741,139.39,139.38,0.41384483]
[1719368638536,7.1737,139.4,139.38,0.41384483]
[1719368638935,7.3432,139.41,139.38,0.41384483]
[1719368639138,0.17,139.4,139.38,0.41384483]
[1719368639339,53.7771,139.47,139.38,0.41384483]
[1719368639660,7.1731,139.41,139.38,0.41384483]
[1719368640262,7.5127,139.42,139.38,45.41384483]
[1719368640427,0.34,139.42,139.38,45.41384483]
[1719368640627,7.1721,139.43,139.38,45.41384483]
[1719368641173,7.1727,139.42,139.38,45.41384483]
[1719368641660,7.1721,139.43,139.38,45.41384483]
[1719368641963,7.3416,139.44,139.38,45.41384483]
[1719368642164,7.1721,139.43,139.38,45.41384483]
[1719368644161,7.1722,139.43,139.38,45.41384483]
[1719368644941,6.78655227,139.47,139.38,63.35004483]
[1719368645268,7.1711,139.45,139.39,7.174]
[1719368645555,7.172,139.43,139.4,45.0]
[1719368645762,7.172,139.43,139.38,63.35004483]
[1719368645977,7.1726,139.42,139.38,45.41384483]
[1719368647469,7.1721,139.43,139.38,45.41384483]
[1719368648569,7.1713,139.45,139.39,7.1737]
[1719368648753,7.17,139.47,139.41,7.1728]
[1719368648954,7.17,139.47,139.42,45.0]
[1719368649156,7.1693,139.49,139.43,7.1719]
[1719368649360,7.1693,139.49,139.44,45.0]
[1719368649559,258.6,139.5,139.44,45.0]
[1719368649793,7.1693,139.49,139.44,45.0]
[1719368650077,7.1695,139.48,139.44,45.0]
[1719368650552,7.509,139.49,139.44,45.0]
[1719368650879,0.34,139.49,139.43,16.4448]
[1719368651172,7.1715,139.44,139.43,16.4448]
[1719368651475,7.1723,139.43,139.4,16.3888]
[1719368651776,0.34,139.49,139.38,6.90054483]
[1719368652077,7.1729,139.42,139.38,6.90054483]
[1719368652481,7.1722,139.43,139.38,6.90054483]
[1719368652967,7.1732,139.41,139.38,6.90054483]
[1719368653991,7.5127,139.42,139.38,6.90054483]
[1719368655991,0.34,139.42,139.38,6.90054483]
[1719368656179,7.5125,139.42,139.38,6.90054483]
[1719368656379,7.1739,139.4,139.38,0.41384483]
[1719368656689,0.34,139.39,139.38,0.41384483]
[1719368656864,7.5141,139.39,139.38,0.41384483]
[1719368660774,7.1759,139.36,139.34,0.90135045]
[1719368661283,7.5152,139.37,139.34,0.90135045]
[1719368662270,7.1757,139.36,139.34,0.90135045]
[1719368663495,7.1761,139.35,139.34,0.90135045]
[1719368663671,7.1756,139.36,139.34,0.90135045]
[1719368664085,7.1761,139.35,139.34,0.90135045]
[1719368664401,0.34,139.37,139.34,0.90135045]
[1719368664616,7.1756,139.36,139.34,0.90135045]
[1719368665499,0.34,139.38,139.34,0.90135045]
[1719368665702,7.1754,139.37,139.34,0.90135045]
[1719368666072,0.34,139.39,139.34,0.90135045]
[1719368666297,7.1751,139.37,139.34,0.90135045]
[1719368666775,7.1747,139.38,139.34,0.90135045]
[1719368667395,0.17,139.39,139.34,0.90135045]
[1719368667592,7.1761,139.35,139.34,0.90135045]
[1719368667772,7.3461,139.35,139.34,0.90135045]
[1719368667980,7.1783,139.31,139.27,6.4599]
[1719368668190,0.17,139.35,139.27,6.4599]
[1719368668408,7.1796,139.29,139.27,6.4599]
[1719368668791,7.1789,139.3,139.27,6.4599]
[1719368669209,7.1793,139.29,139.24,21.6909]
[1719368669713,7.1789,139.3,139.24,21.6909]
[1719368669880,0.17,139.31,139.25,7.1808]
[1719368670084,0.17,139.31,139.24,46.8265]
[1719368670593,7.1791,139.3,139.24,46.8265]
[1719368670986,0.17,139.31,139.24,46.8265]
[1719368670987,7.3482,139.31,139.25,7.1812]
[1719368671297,0.17,139.32,139.24,39.6449]
[1719368671492,7.1782,139.31,139.25,7.1809]
[1719368671819,0.34,139.33,139.24,39.6449]
[1719368671820,7.3489,139.3,139.26,45.0]
[1719368671988,7.1789,139.3,139.25,45.0]
[1719368672710,7.1793,139.29,139.25,45.0]
[1719368673227,7.1789,139.3,139.25,45.0]
[1719368674889,0.34,139.31,139.25,45.0]
[1719368674890,7.1798,139.28,139.25,45.0]
[1719368675097,7.1799,139.28,139.25,45.0]
[1719368675615,22.7068,139.34,139.25,45.0]
[1719368675818,20.0,139.33,139.25,45.0]
[1719368676009,37.9432,139.33,139.25,45.0]
[1719368676902,0.34,139.32,139.25,45.0]
[1719368677100,7.1791,139.3,139.25,45.0]
[1719368677316,0.34,139.29,139.25,45.0]
[1719368678419,20.0,139.33,139.25,62.9528]
[1719368678715,7.1755,139.37,139.31,7.1781]
[1719368678896,398.5683,139.43,139.33,6.5961]
[1719368679095,7.1736,139.4,139.33,31.7154]
[1719368679394,7.1753,139.37,139.33,6.5961]
[1719368679812,7.1756,139.36,139.33,6.5961]
[1719368680311,7.1767,139.34,139.32,15.4095]
[1719368680491,7.1776,139.33,139.3,6.5961]
[1719368681100,7.3467,139.34,139.3,6.5961]
[1719368682323,0.17,139.33,139.3,6.5961]
[1719368682522,0.17,139.34,139.29,15.4095]
[1719368682697,7.347,139.34,139.29,15.4095]
[1719368682899,0.17,139.33,139.29,15.4095]
[1719368683306,7.1781,139.32,139.29,15.4095]
[1719368683621,0.17,139.33,139.29,15.4095]
[1719368684124,7.1772,139.33,139.29,15.4095]
[1719368684299,0.34,139.32,139.29,15.4095]
[1719368684821,0.17,139.32,139.29,15.4095]
[1719368685021,7.1781,139.32,139.27,6.14]
[1719368685325,0.34,139.31,139.27,6.14]
[1719368685628,7.5183,139.31,139.27,6.14]
[1719368688231,7.1788,139.3,139.25,15.9765]
[1719368688518,7.5193,139.29,139.25,15.9765]
[1719368688722,7.3493,139.29,139.25,15.9765]
[1719368688910,0.17,139.31,139.25,15.9765]
[1719368689110,7.1787,139.3,139.25,15.9765]
[1719368689999,7.1787,139.3,139.26,45.0]
[1719368690431,7.1794,139.29,139.26,45.0]
[1719368690627,7.1801,139.28,139.25,15.9765]
[1719368690935,7.3494,139.29,139.25,15.9765]
[1719368691832,0.17,139.3,139.25,15.9765]
[1719368692038,17.9435,139.33,139.26,45.0]
[1719368692535,7.1791,139.3,139.26,45.0]
[1719368692724,17.9435,139.33,139.26,45.0]
[1719368693314,7.1802,139.28,139.21,22.5699255]
[1719368693515,0.34,139.29,139.21,29.7531255]
[1719368693734,0.17,139.28,139.21,29.7531255]
[1719368694036,0.34,139.3,139.21,29.7531255]
[1719368694412,7.1803,139.27,139.21,29.7531255]
[1719368694629,7.1799,139.28,139.22,7.1828]
[1719368694829,7.1793,139.29,139.23,7.1822]
[1719368695033,0.34,139.28,139.23,7.1822]